bitfinex/quotes_BTCUSD_20230117
["timestamp","ask_amount","ask_price","bid_price","bid_amount"]
[1673916925774,0.733221,21105.0,21104.0,0.01596982]
[1673916926033,1.054878,21105.0,21104.0,0.01596982]
[1673916926328,0.599495,21107.0,21104.0,0.01596982]
[1673916926572,0.599461,21108.0,21104.0,0.01596982]
[1673916926832,0.091,21105.0,21104.0,0.13565887]
[1673916927095,0.01689151,21106.0,21104.0,0.01596982]
[1673916927670,0.01689151,21106.0,21104.0,0.01588315]
[1673916927918,0.01689151,21106.0,21104.0,0.96356615]
[1673916928183,0.473725,21110.0,21105.0,0.471657]
[1673916928431,0.473725,21110.0,21106.0,0.26169105]
[1673916928710,0.473725,21110.0,21106.0,0.11968905]
[1673916928975,0.00042462,21109.0,21106.0,0.41968905]
[1673916929225,0.00042462,21109.0,21106.0,0.773795]
[1673916929764,0.47367,21112.0,21107.0,0.11968905]
[1673916930013,0.473647,21113.0,21108.0,0.91509205]
[1673916930265,0.473647,21113.0,21109.0,0.11968905]
[1673916930517,0.00042462,21112.0,21109.0,0.11968905]
[1673916930810,0.00042462,21112.0,21108.0,0.947499]
[1673916931051,0.19072595,21111.0,21107.0,0.473761]
[1673916931308,0.19072595,21110.0,21106.0,0.473782]
[1673916931786,0.51280757,21109.0,21106.0,0.473782]
[1673916931787,0.32208162,21109.0,21106.0,0.473782]
[1673916932046,0.321657,21108.0,21105.0,0.947606]
[1673916932309,0.19072595,21108.0,21106.0,0.3]
[1673916932573,0.473715,21110.0,21106.0,0.3]
[1673916932891,0.473715,21110.0,21107.0,0.003]
[1673916933101,0.479705,21111.0,21107.0,0.11968905]
[1673916933371,0.479705,21111.0,21108.0,0.59689074]
[1673916933372,0.006,21111.0,21108.0,0.59689074]
[1673916933631,0.47356,21117.0,21109.0,0.746657]
[1673916933901,0.034,21110.0,21109.0,2.33413451]
[1673916934153,0.68204,21117.0,21109.0,2.16785]
[1673916934154,0.76456072,21117.0,21109.0,2.16785]
[1673916934431,0.006,21111.0,21110.0,0.26159105]
[1673916934705,0.006,21111.0,21110.0,0.38719105]
[1673916934964,0.006,21111.0,21110.0,1.51492]
[1673916935792,0.39920595,21117.0,21110.0,1.51492]
[1673916936067,0.40820595,21117.0,21111.0,0.74130705]
[1673916936330,0.473551,21118.0,21112.0,1.06698105]
[1673916936593,0.473551,21118.0,21113.0,0.41968905]
[1673916936894,0.65427695,21118.0,21113.0,0.59331605]
[1673916937195,0.18122692,21117.0,21113.0,0.59331605]
[1673916937516,0.32208162,21116.0,21113.0,0.473627]
[1673916937772,0.00042462,21116.0,21113.0,0.473627]
[1673916938304,0.03122692,21117.0,21113.0,1.06695705]
[1673916938576,0.03122692,21117.0,21114.0,0.41968905]
[1673916938849,0.03122692,21117.0,21115.0,0.795253]
[1673916939147,0.03122692,21117.0,21116.0,0.3]
[1673916939148,0.03722692,21117.0,21116.0,0.3]
[1673916939430,0.03122692,21117.0,21115.0,0.473596]
[1673916939691,0.06522692,21117.0,21116.0,0.3]
[1673916940201,0.06522692,21117.0,21114.0,0.4736]
[1673916940202,0.15222692,21117.0,21114.0,0.4736]
[1673916940460,0.22195287,21117.0,21114.0,0.4736]
[1673916941032,0.03122692,21117.0,21114.0,0.4736]
[1673916941321,0.04022692,21117.0,21115.0,0.003]
[1673916941576,0.321657,21116.0,21115.0,0.003]
[1673916942128,0.321657,21116.0,21112.0,0.473658]
[1673916942375,0.321657,21115.0,21114.0,0.003]
[1673916942632,0.321657,21115.0,21112.0,0.473658]
[1673916942882,0.321657,21114.0,21112.0,0.473658]
[1673916943130,0.087,21116.0,21112.0,0.473658]
[1673916943399,0.63049492,21117.0,21112.0,0.59334705]
[1673916943636,0.006,21115.0,21114.0,0.003]
[1673916943888,0.03122692,21117.0,21114.0,1.14104705]
[1673916944137,0.009,21116.0,21115.0,0.44134605]
[1673916944403,0.009,21116.0,21115.0,1.095253]
[1673916944921,0.03122692,21117.0,21115.0,1.095253]
[1673916945185,0.03122692,21117.0,21114.0,0.476598]
[1673916945186,0.006,21115.0,21114.0,0.476598]
[1673916945425,0.03122692,21117.0,21114.0,0.473598]
[1673916945678,0.009,21116.0,21115.0,0.003]
[1673916945927,0.009,21116.0,21114.0,0.473598]
[1673916946172,0.009,21115.0,21114.0,0.476598]
[1673916946444,0.009,21115.0,21114.0,0.776598]
[1673916946699,0.03122692,21117.0,21114.0,1.568874]
[1673916946959,0.009,21116.0,21114.0,1.247217]
[1673916947260,0.009,21116.0,21112.0,0.473648]
[1673916947261,0.19972595,21116.0,21112.0,0.473648]
[1673916947476,0.19972595,21115.0,21114.0,0.003]
[1673916947735,0.009,21115.0,21114.0,0.006]
[1673916947991,0.50478092,21117.0,21112.0,0.947311]
[1673916948258,0.00042462,21115.0,21112.0,1.07000005]
[1673916948559,0.009,21116.0,21112.0,0.947311]
[1673916948765,0.22472595,21115.0,21110.0,0.381]
[1673916949068,0.51238295,21114.0,21110.0,0.473692]
[1673916949296,0.32208162,21113.0,21110.0,0.473692]
[1673916949566,0.19072595,21113.0,21110.0,0.473692]
[1673916949818,0.19072595,21113.0,21112.0,0.003]
[1673916950070,0.4826,21115.0,21110.0,0.473692]
[1673916950325,0.009,21113.0,21110.0,0.59638105]
[1673916950591,0.898292,21116.0,21111.0,0.3]
[1673916950852,0.034,21113.0,21112.0,0.11968905]
[1673916951159,0.898292,21116.0,21111.0,0.473674]
[1673916951364,0.009,21113.0,21111.0,0.59336305]
[1673916951630,1.56261395,21116.0,21111.0,0.473674]
[1673916951874,0.473602,21115.0,21111.0,0.11968905]
[1673916952148,0.321657,21114.0,21110.0,0.473689]
[1673916952440,0.19115057,21114.0,21110.0,0.473689]
[1673916953194,0.009,21113.0,21111.0,0.003]
[1673916953438,0.19115057,21114.0,21110.0,0.473689]
[1673916953704,0.009,21114.0,21110.0,1.07008705]
[1673916953961,0.009,21114.0,21111.0,0.3]
[1673916954224,0.0085,21115.0,21111.0,0.89336605]
[1673916954474,0.006,21114.0,21112.0,0.44134605]
[1673916954729,0.03122692,21117.0,21113.0,0.915465]
[1673916954998,0.03122692,21117.0,21114.0,0.44131505]
[1673916955225,0.03122692,21117.0,21115.0,0.141808]
[1673916955489,0.03165154,21117.0,21114.0,0.11968905]
[1673916955743,0.03165154,21117.0,21113.0,0.473639]
[1673916956011,0.03165154,21117.0,21112.0,0.473657]
[1673916956012,0.31037749,21117.0,21112.0,0.473657]
[1673916956317,0.19072595,21116.0,21113.0,0.3]
[1673916956531,0.23137749,21117.0,21114.0,0.003]
[1673916956836,0.04065154,21117.0,21114.0,0.003]
[1673916957357,0.00011833,21114.0,21113.0,0.47364]
[1673916957683,0.00011833,21114.0,21113.0,0.77364]
[1673916957925,0.00011833,21114.0,21113.0,1.095297]
[1673916958170,0.00011833,21114.0,21113.0,1.568938]
[1673916959453,0.00911833,21114.0,21113.0,1.571938]
[1673916960702,0.00011833,21114.0,21113.0,1.568938]
[1673916961430,0.03050621,21117.0,21113.0,1.568938]
[1673916961682,0.03050621,21117.0,21114.0,0.441803]
[1673916961931,0.03050621,21117.0,21115.0,0.321622]
[1673916962173,0.03050621,21117.0,21113.0,0.47364]
[1673916962415,0.19072595,21116.0,21113.0,0.47364]
[1673916962676,0.19072595,21116.0,21112.0,0.473647]
[1673916962677,0.321657,21115.0,21112.0,0.473647]
[1673916962931,0.19072595,21115.0,21112.0,0.473647]
[1673916963183,0.1257,21116.0,21112.0,0.473647]
[1673916963423,0.50407521,21117.0,21112.0,0.947311]
[1673916963664,0.00042462,21115.0,21112.0,1.06700005]
[1673916963912,0.69480116,21117.0,21112.0,0.947311]
[1673916964226,0.69480116,21117.0,21112.0,1.06700005]
[1673916966713,0.69480116,21117.0,21112.0,0.59333605]
[1673916966952,1.16835316,21117.0,21112.0,0.59333605]
[1673916967199,0.321657,21116.0,21112.0,0.59333605]
[1673916967440,0.00042462,21115.0,21112.0,0.473647]
[1673916967691,0.19072595,21116.0,21112.0,0.473647]
[1673916967929,0.97762721,21117.0,21112.0,0.473647]
[1673916968165,1.16835316,21117.0,21112.0,0.59333605]
[1673916968931,0.321657,21116.0,21112.0,0.59333605]
[1673916969192,0.50405821,21117.0,21113.0,0.3]
[1673916969461,0.50405821,21117.0,21113.0,0.773639]
[1673916969720,0.50405821,21117.0,21113.0,0.89332805]
[1673916970240,0.03050621,21117.0,21113.0,0.89332805]
[1673916970774,0.03050621,21117.0,21114.0,0.11968905]
[1673916971032,0.03050621,21117.0,21115.0,0.321657]
[1673916971307,0.03050621,21117.0,21116.0,0.441753]
[1673916971624,0.03050621,21117.0,21116.0,0.915327]
[1673916972133,0.03050621,21117.0,21116.0,1.247148]
[1673916972362,0.03050621,21117.0,21115.0,0.473596]
[1673916972363,0.22165678,21117.0,21115.0,0.473596]
[1673916972628,0.03093083,21117.0,21114.0,0.473604]
[1673916972923,0.22165678,21117.0,21114.0,0.473604]
[1673916973152,0.03050621,21117.0,21114.0,0.473604]
[1673916973436,0.03050621,21117.0,21114.0,0.947223]
[1673916973712,0.03050621,21117.0,21114.0,1.08888156]
[1673916973978,0.03050621,21117.0,21115.0,0.621657]
[1673916974263,0.03050621,21117.0,21116.0,0.615327]
[1673916974516,0.03050621,21117.0,21116.0,0.473574]
[1673916974795,0.03050621,21117.0,21115.0,0.473583]
[1673916975316,0.03050621,21117.0,21113.0,0.947258]
[1673916975598,0.321657,21116.0,21113.0,0.947258]
[1673916975863,0.19072595,21115.0,21113.0,0.473623]
[1673916976157,0.321657,21114.0,21110.0,0.61536056]
[1673916976441,0.19072595,21113.0,21110.0,0.8278484]
[1673916976696,0.19072595,21113.0,21110.0,0.61536056]
[1673916977536,0.15,21115.0,21110.0,0.14165856]
[1673916977805,0.19072595,21115.0,21110.0,0.26134761]
[1673916978597,0.19072595,21115.0,21110.0,0.73504961]
[1673916978850,0.66432295,21115.0,21110.0,0.73504961]
[1673916979631,1.13791895,21115.0,21110.0,0.73504961]
[1673916980415,0.321657,21114.0,21110.0,0.73504961]
[1673916980679,1.59429957,21113.0,21108.0,0.14165856]
[1673916980943,0.1257,21111.0,21107.0,0.3541464]
[1673916981212,0.321657,21110.0,21106.0,3.4572274]
[1673916981473,0.51238295,21109.0,21106.0,0.61543956]
[1673916981730,0.00042462,21108.0,21106.0,0.61543956]
[1673916982547,0.00042462,21108.0,21106.0,0.473781]
[1673916983072,0.00042462,21108.0,21105.0,0.37003198]
[1673916983527,0.00042462,21108.0,21105.0,0.15754414]
[1673916983528,0.00892462,21108.0,21105.0,0.15754414]
[1673916983530,0.00892462,21108.0,21105.0,0.01588558]
[1673916984539,0.00892462,21108.0,21105.0,0.31588558]
[1673916985054,0.95643362,21108.0,21105.0,0.01588558]
[1673916985317,0.321657,21107.0,21105.0,0.01588558]
[1673916985581,0.321657,21106.0,21105.0,0.01588558]
[1673916985874,0.32154909,21106.0,21105.0,0.01588558]
[1673916986113,1.40294509,21106.0,21105.0,0.01588558]
[1673916986656,1.27764509,21106.0,21105.0,0.01588558]
[1673916987795,0.80384709,21106.0,21105.0,0.01588558]
[1673916988340,0.33004909,21106.0,21105.0,0.01588558]
[1673916988875,1.11947304,21106.0,21105.0,0.01588558]
[1673916989139,1.40254509,21106.0,21105.0,0.01588558]
[1673916989396,1.92079755,21106.0,21105.0,0.01588558]
[1673916989654,1.77079755,21106.0,21105.0,8.558e-05]
[1673916989923,1.40254509,21106.0,21105.0,8.558e-05]
[1673916993134,1.59327104,21106.0,21105.0,8.558e-05]
[1673916993405,1.52824509,21106.0,21105.0,8.558e-05]
[1673916994790,1.27764509,21106.0,21105.0,0.11977463]
[1673916995091,1.27764509,21106.0,21105.0,8.558e-05]
[1673916995350,1.27764509,21106.0,21101.0,2.64585704]
[1673916995632,0.52088295,21105.0,21101.0,0.01655704]
[1673916995891,0.67304795,21105.0,21101.0,0.01655704]
[1673916996164,1.14686895,21105.0,21101.0,0.01655704]
[1673916997035,0.482321,21105.0,21101.0,0.01655704]
[1673916997297,1.14686795,21105.0,21101.0,0.01655704]
[1673916997570,0.51242595,21104.0,21101.0,0.01655704]
[1673916997841,0.1257,21102.0,21101.0,0.01655704]
[1673916998097,1.403676,21102.0,21101.0,0.01655704]
[1673916998894,1.40410062,21102.0,21101.0,0.01655704]
[1673916999239,0.929788,21102.0,21101.0,0.01655704]
[1673916999484,0.3217,21102.0,21101.0,0.01655704]
[1673917000233,0.32212462,21102.0,21101.0,0.01655704]
[1673917000473,1.519476,21102.0,21101.0,0.01655704]
[1673917000715,1.88772846,21102.0,21101.0,0.01655704]
[1673917001221,1.88815308,21102.0,21101.0,0.01655704]
[1673917001465,1.89665308,21102.0,21101.0,0.01655704]
[1673917002441,1.89665308,21102.0,21099.0,0.01779501]
[1673917002442,0.07893317,21100.0,21099.0,0.01779501]
[1673917002714,2.14735812,21100.0,21099.0,0.01779501]
[1673917002960,2.94764326,21100.0,21099.0,0.01779501]
[1673917003238,2.99551654,21100.0,21099.0,0.01779501]
[1673917003989,2.99551654,21100.0,21098.0,0.01779501]
[1673917003990,0.09191,21099.0,21098.0,0.01779501]
[1673917004239,2.89264111,21099.0,21098.0,0.01779501]
[1673917004491,0.09191,21098.0,21095.0,0.01472987]
[1673917004745,0.2494,21096.0,21092.0,0.01791543]
[1673917005025,0.2509,21093.0,21092.0,0.01791543]
[1673917005271,1.52078,21093.0,21092.0,0.01791543]
[1673917005512,1.72043057,21093.0,21092.0,0.01791543]
[1673917005756,1.52970462,21093.0,21092.0,0.01791543]
[1673917006510,1.93840462,21093.0,21092.0,0.01791543]
[1673917007503,1.93840462,21093.0,21092.0,0.01609136]
[1673917008978,1.68750462,21093.0,21092.0,0.01609136]
[1673917009215,0.7304,21093.0,21092.0,0.01609136]
[1673917009498,0.4087,21093.0,21092.0,0.01609136]
[1673917011968,0.4087,21093.0,21092.0,0.33779136]
[1673917012203,0.4087,21093.0,21092.0,0.75748041]
[1673917012460,0.4087,21093.0,21092.0,0.78779136]
[1673917013178,0.4087,21093.0,21092.0,1.86499305]
[1673917013428,0.4087,21093.0,21092.0,2.96595193]
[1673917014146,0.4087,21093.0,21092.0,2.95095193]
[1673917014684,0.4087,21093.0,21092.0,1.82327261]
[1673917014936,0.4087,21093.0,21092.0,2.29738561]
[1673917015191,0.4087,21093.0,21092.0,1.82018392]
[1673917015702,0.3687,21093.0,21092.0,1.82018392]
[1673917015938,0.3687,21093.0,21092.0,2.12018392]
[1673917016168,0.3687,21093.0,21092.0,2.51809692]
[1673917016418,0.3687,21093.0,21092.0,2.51817585]
[1673917016676,0.36912462,21093.0,21092.0,1.26983804]
[1673917016927,0.36912462,21093.0,21092.0,0.32161204]
[1673917017172,0.36912462,21093.0,21091.0,0.474129]
[1673917017415,0.3687,21093.0,21091.0,0.474129]
[1673917017703,0.3687,21093.0,21092.0,0.321753]
[1673917017704,0.36912462,21093.0,21092.0,0.321753]
[1673917017955,0.3687,21093.0,21092.0,0.321753]
[1673917018260,0.3687,21093.0,21091.0,0.474129]
[1673917018672,0.3687,21093.0,21092.0,0.321753]
[1673917018913,0.3687,21093.0,21091.0,0.474129]
[1673917019875,0.07454462,21092.0,21091.0,0.474129]
[1673917020141,0.3687,21093.0,21091.0,0.474134]
[1673917020388,0.3687,21093.0,21092.0,0.321753]
[1673917020635,0.3687,21093.0,21092.0,1.74431096]
[1673917020884,0.3687,21093.0,21092.0,2.04431096]
[1673917022826,0.3687,21093.0,21092.0,2.21842396]
[1673917023341,0.3687,21093.0,21092.0,2.51842396]
[1673917023599,0.3687,21093.0,21092.0,2.59482396]
[1673917023856,0.3687,21093.0,21092.0,2.67092396]
[1673917024111,0.09162152,21093.0,21092.0,3.14812565]
[1673917024673,2.152e-05,21093.0,21092.0,3.14812565]
[1673917024900,0.00481317,21100.0,21092.0,3.14812565]
[1673917024901,0.00481317,21100.0,21093.0,0.15]
[1673917025168,0.00481317,21100.0,21097.0,0.0765]
[1673917025425,0.00042462,21099.0,21098.0,0.91531605]
[1673917025696,0.00481317,21100.0,21097.0,0.11968905]
[1673917026020,0.15481317,21100.0,21096.0,0.474009]
[1673917026212,1.10268717,21100.0,21094.0,0.474068]
[1673917026485,0.19115057,21099.0,21095.0,0.94831022]
[1673917026735,1.269716,21098.0,21094.0,0.11968905]
[1673917026990,0.330253,21097.0,21093.0,0.474089]
[1673917027247,0.330253,21097.0,21094.0,0.94834789]
[1673917027248,0.19922595,21097.0,21094.0,0.94834789]
[1673917027524,0.0085,21097.0,21094.0,0.94838047]
[1673917028618,0.0085,21097.0,21095.0,0.3]
[1673917028839,0.0085,21097.0,21094.0,1.02468047]
[1673917028840,0.0085,21097.0,21094.0,0.2263]
[1673917029124,0.473958,21099.0,21095.0,1.32481074]
[1673917029125,0.0085,21098.0,21095.0,1.32481074]
[1673917029382,0.47876217,21100.0,21097.0,0.0765]
[1673917029383,0.00481317,21100.0,21097.0,0.0765]
[1673917029653,0.00481317,21100.0,21098.0,1.63919474]
[1673917029975,0.00481317,21100.0,21099.0,0.321702]
[1673917030442,0.00481317,21100.0,21098.0,0.550478]
[1673917030951,0.00481317,21100.0,21098.0,1.024456]
[1673917031489,0.19072595,21099.0,21095.0,0.3]
[1673917031760,0.19072595,21099.0,21096.0,1.42225736]
[1673917032002,0.00481317,21100.0,21097.0,1.64630136]
[1673917032275,0.00481317,21100.0,21098.0,2.03659336]
[1673917032528,0.00481317,21100.0,21099.0,0.32056971]
[1673917032784,0.00481317,21100.0,21099.0,0.473956]
[1673917033076,0.00481317,21100.0,21099.0,1.247912]
[1673917033326,0.00481317,21100.0,21099.0,2.59429438]
[1673917033587,0.00481317,21100.0,21099.0,2.59428162]
[1673917034373,0.00481317,21100.0,21099.0,2.21778162]
[1673917034614,0.00481317,21100.0,21099.0,2.2177693]
[1673917034870,0.00481317,21100.0,21099.0,1.569631]
[1673917035392,0.00481317,21100.0,21099.0,2.51776762]
[1673917036498,0.00481317,21100.0,21099.0,2.63745667]
[1673917036767,0.00481317,21100.0,21099.0,2.96096762]
[1673917037902,0.00481317,21100.0,21099.0,2.67046762]
[1673917038157,0.00481317,21100.0,21099.0,1.645931]
[1673917038435,0.00481317,21100.0,21099.0,2.594014]
[1673917039494,0.00481317,21100.0,21099.0,2.59400563]
[1673917039771,0.00481317,21100.0,21099.0,1.645931]
[1673917040294,0.00481317,21100.0,21099.0,1.722031]
[1673917040584,0.00481317,21100.0,21099.0,2.67007797]
[1673917040897,0.00481317,21100.0,21099.0,2.96077797]
[1673917047763,0.00481317,21100.0,21099.0,2.012731]
[1673917048014,0.00481317,21100.0,21099.0,1.422031]
[1673917048279,0.00481317,21100.0,21099.0,2.37003996]
[1673917048793,0.00481317,21100.0,21099.0,1.422031]
[1673917049050,0.00481317,21100.0,21099.0,2.37002834]
[1673917049306,0.00481317,21100.0,21099.0,1.722031]
[1673917049557,0.00481317,21100.0,21099.0,2.67003178]
[1673917050073,0.19553912,21100.0,21099.0,1.422031]
[1673917050327,0.00481317,21100.0,21099.0,1.345931]
[1673917051379,0.00481317,21100.0,21099.0,1.269631]
[1673917051640,0.00481317,21100.0,21099.0,1.569631]
[1673917051894,0.00481317,21100.0,21099.0,1.646131]
[1673917053955,0.00481317,21100.0,21099.0,2.59416738]
[1673917054547,0.00481317,21100.0,21099.0,2.73582594]
[1673917054752,0.00481317,21100.0,21099.0,2.66996738]
[1673917055545,0.00481317,21100.0,21099.0,2.76826738]
[1673917055845,0.00481317,21100.0,21099.0,3.38712763]
[1673917056340,0.00472115,21100.0,21099.0,4.42464605]
[1673917056601,0.00472115,21100.0,21099.0,5.22263047]
[1673917056855,0.00472115,21100.0,21099.0,4.5867983]
[1673917057185,0.00472115,21100.0,21099.0,6.00857537]
[1673917057393,0.00475705,21102.0,21100.0,0.15]
[1673917057668,0.0048589,21109.0,21101.0,2.1388211]
[1673917057921,0.0048589,21109.0,21108.0,0.1254]
[1673917058171,0.0048589,21109.0,21108.0,1.80551505]
[1673917058436,0.0048589,21109.0,21108.0,1.560426]
[1673917058698,0.0048589,21109.0,21108.0,1.386672]
[1673917058954,0.0048589,21109.0,21108.0,1.086672]
[1673917059192,0.0048589,21109.0,21108.0,0.947508]
[1673917060264,0.00528352,21109.0,21106.0,0.3]
[1673917060511,0.19600947,21109.0,21107.0,0.473774]
[1673917060768,0.00528352,21109.0,21107.0,0.473774]
[1673917061790,0.0048589,21109.0,21107.0,0.473774]
[1673917062305,0.0048589,21109.0,21108.0,0.3]
[1673917062553,0.0048589,21109.0,21108.0,0.621719]
[1673917062801,0.0048589,21109.0,21108.0,1.247508]
[1673917063048,0.0048589,21109.0,21108.0,1.569227]
[1673917063298,0.0048589,21109.0,21108.0,1.386522]
[1673917063809,0.0048589,21109.0,21108.0,0.473754]
[1673917064906,0.00528352,21109.0,21108.0,0.473754]
[1673917065096,0.0048589,21109.0,21108.0,0.473754]
[1673917066448,0.00528352,21109.0,21108.0,0.473754]
[1673917066702,0.0048589,21109.0,21108.0,0.473754]
[1673917067215,0.0048589,21109.0,21107.0,0.473774]
[1673917067525,0.00528352,21109.0,21107.0,0.473774]
[1673917067996,0.0048589,21109.0,21107.0,0.473774]
[1673917068250,0.0048589,21109.0,21107.0,0.94755]
[1673917068510,0.0048589,21109.0,21108.0,0.3]
[1673917068766,0.0048589,21109.0,21108.0,0.621719]
[1673917069035,0.0048589,21109.0,21108.0,1.247508]
[1673917072925,0.00528352,21109.0,21108.0,0.947508]
[1673917073149,0.0048589,21109.0,21108.0,0.947508]
[1673917074503,0.0789789,21109.0,21103.0,0.5034843]
[1673917074767,0.19072595,21108.0,21106.0,0.473798]
[1673917075061,0.19558485,21109.0,21106.0,0.473798]
[1673917075337,0.0048589,21109.0,21106.0,0.473798]
[1673917075867,0.0048589,21109.0,21106.0,0.947596]
[1673917076112,0.00528352,21109.0,21107.0,0.3]
[1673917076342,0.00528352,21109.0,21106.0,0.947596]
[1673917076817,0.0048589,21109.0,21107.0,0.3]
[1673917077327,0.0048589,21109.0,21107.0,0.773772]
[1673917078884,0.0048589,21109.0,21107.0,0.473772]
[1673917079147,0.0048589,21109.0,21106.0,0.473777]
[1673917080206,0.00528352,21109.0,21106.0,0.473777]
[1673917080727,0.0048589,21109.0,21107.0,0.3]
[1673917081046,0.0048589,21109.0,21107.0,0.773766]
[1673917082346,0.0048589,21109.0,21107.0,0.77365376]
[1673917083116,0.0048589,21109.0,21107.0,0.473766]
[1673917083634,0.0048589,21109.0,21107.0,0.947542]
[1673917084434,0.00528352,21109.0,21107.0,0.947542]
[1673917084674,0.0048589,21109.0,21107.0,0.947542]
[1673917085465,0.0048589,21109.0,21108.0,0.3]
[1673917085729,0.0048589,21109.0,21108.0,0.747519]
[1673917085999,0.0048589,21109.0,21108.0,1.703527]
[1673917086268,0.0048589,21109.0,21108.0,2.5254178]
[1673917086790,0.0048589,21109.0,21108.0,1.577727]
[1673917087863,0.0048589,21109.0,21108.0,1.577567]
[1673917088136,0.0048589,21109.0,21108.0,2.87869112]
[1673917088485,0.00178592,21109.0,21108.0,4.1267672]
[1673917088675,0.00178592,21109.0,21108.0,3.14404229]
[1673917088965,0.00178592,21109.0,21108.0,3.35613287]
[1673917089263,0.00178592,21109.0,21108.0,3.47739142]
[1673917089519,0.00178592,21109.0,21108.0,3.83647887]
[1673917089786,0.00178592,21109.0,21108.0,3.9778726]
[1673917090307,0.00178592,21109.0,21108.0,3.83677003]
[1673917090574,0.00178592,21109.0,21108.0,3.62438829]
[1673917090837,0.00178592,21109.0,21108.0,3.9778726]
[1673917091095,0.00178592,21109.0,21108.0,4.420438]
[1673917091370,0.00178592,21109.0,21108.0,4.42735055]
[1673917091642,0.00178592,21109.0,21108.0,4.07386624]
[1673917091901,0.00178592,21109.0,21108.0,4.4279642]
[1673917092157,0.00546777,21111.0,21108.0,4.07386624]
[1673917092488,0.00546777,21111.0,21110.0,0.21766616]
[1673917092748,0.19661834,21111.0,21110.0,2.84051898]
[1673917093009,0.00546777,21111.0,21110.0,1.751313]
[1673917093248,0.02319815,21111.0,21110.0,1.751313]
[1673917093499,0.02319815,21111.0,21110.0,2.69889349]
[1673917093775,0.02319815,21111.0,21110.0,1.751313]
[1673917094039,0.02319815,21111.0,21110.0,2.69889345]
[1673917094287,0.02319815,21111.0,21110.0,2.84045961]
[1673917094529,0.02319815,21111.0,21110.0,3.14045961]
[1673917095305,0.00546777,21111.0,21110.0,3.42910884]
[1673917095547,0.00546777,21111.0,21110.0,3.39624631]
[1673917095792,0.0007067,21115.0,21110.0,3.39624752]
[1673917096038,0.0007067,21115.0,21111.0,0.33478005]
[1673917096345,0.0007067,21115.0,21112.0,1.420977]
[1673917096529,0.0007067,21115.0,21112.0,1.54066605]
[1673917096774,0.0007067,21115.0,21112.0,1.420977]
[1673917097016,0.0007067,21115.0,21113.0,0.3]
[1673917097266,0.0007067,21115.0,21114.0,0.473619]
[1673917097517,0.0007067,21115.0,21114.0,0.947238]
[1673917097770,0.0007067,21115.0,21114.0,1.247238]
[1673917098006,0.0007067,21115.0,21114.0,1.568957]
[1673917098267,0.0007067,21115.0,21114.0,1.720757]
[1673917099297,0.0007067,21115.0,21114.0,1.729257]
[1673917100030,0.0007067,21115.0,21114.0,1.714257]
[1673917100540,0.0007067,21115.0,21114.0,1.414257]
[1673917101283,0.0007067,21115.0,21114.0,1.262457]
[1673917102031,0.0007067,21115.0,21114.0,1.253957]
[1673917102775,0.0007067,21115.0,21114.0,1.553957]
[1673917108243,0.0007067,21115.0,21114.0,1.55384965]
[1673917111509,0.19143265,21115.0,21114.0,0.45851165]
[1673917111759,0.3983257,21115.0,21113.0,0.47364]
[1673917112018,0.397419,21114.0,21112.0,0.473642]
[1673917112249,0.0756,21113.0,21112.0,0.473642]
[1673917113005,0.07602462,21113.0,21112.0,0.473642]
[1673917113243,0.0756,21113.0,21112.0,0.473642]
[1673917113489,0.0756,21113.0,21110.0,0.947399]
[1673917113729,0.58834495,21112.0,21109.0,0.47372]
[1673917113979,0.321719,21111.0,21109.0,0.47372]
[1673917114223,0.321719,21110.0,21107.0,0.473755]
[1673917114462,0.19072595,21110.0,21108.0,0.473734]
[1673917114696,0.00042462,21111.0,21108.0,0.947486]
[1673917116230,0.00042462,21111.0,21108.0,0.473752]
[1673917117756,0.00042462,21111.0,21108.0,0.947506]
[1673917118252,0.01785114,21110.0,21108.0,0.947506]
[1673917118754,0.0757,21109.0,21106.0,0.473781]
[1673917119045,0.398019,21108.0,21106.0,0.473781]
[1673917119289,0.0763,21108.0,21106.0,0.473781]
[1673917120262,0.0763,21108.0,21105.0,0.473799]
[1673917120263,0.0763,21107.0,21105.0,0.473799]
[1673917120504,0.321719,21106.0,21105.0,0.473799]
[1673917120755,0.0763,21106.0,21103.0,0.96335968]
[1673917120994,0.0762,21104.0,21103.0,0.01564168]
[1673917122003,0.3959,21108.0,21103.0,0.96337368]
[1673917122251,0.3959,21108.0,21104.0,0.11968905]
[1673917122490,0.5212,21109.0,21105.0,0.59350505]
[1673917122749,0.5212,21109.0,21106.0,0.11968905]
[1673917122999,0.4455,21109.0,21106.0,0.89348705]
[1673917123245,0.4455,21109.0,21106.0,0.473798]
[1673917123246,0.02041766,21108.0,21106.0,0.473798]
[1673917123742,0.02084228,21108.0,21106.0,0.473798]
[1673917124443,0.02084228,21108.0,21105.0,0.473816]
[1673917124686,0.21156823,21108.0,21105.0,0.473816]
[1673917124952,0.397819,21107.0,21104.0,0.473821]
[1673917125254,0.26682595,21107.0,21104.0,0.473821]
[1673917125481,0.0761,21107.0,21104.0,0.473821]
[1673917126229,0.076,21105.0,21103.0,0.01564168]
[1673917126530,0.398019,21104.0,21103.0,0.01564168]
[1673917129252,0.41832397,21104.0,21103.0,0.01564168]
[1673917129995,0.41874859,21104.0,21103.0,0.01564168]
[1673917130475,0.41832397,21104.0,21103.0,0.01564168]
[1673917130961,0.41874859,21104.0,21103.0,0.01564168]
[1673917131433,0.41832397,21104.0,21103.0,0.01564168]
[1673917133172,0.34202397,21104.0,21103.0,0.01564168]
[1673917133411,0.02030497,21104.0,21103.0,0.01564168]
[1673917133661,0.02030497,21104.0,21103.0,1.26337368]
[1673917134244,0.01827447,21107.0,21103.0,1.26337368]
[1673917134476,0.01827447,21107.0,21103.0,1.38306273]
[1673917134988,0.01827447,21107.0,21104.0,0.11968905]
[1673917135235,0.01827447,21107.0,21105.0,1.269361]
[1673917135480,0.01827447,21107.0,21105.0,0.947642]
[1673917135481,0.01869909,21107.0,21105.0,0.947642]
[1673917135722,0.01827447,21107.0,21105.0,0.947642]
[1673917137206,0.41297,21110.0,21105.0,0.947642]
[1673917137464,0.26297,21110.0,21105.0,1.06733105]
[1673917138031,0.26297,21110.0,21105.0,1.06624744]
[1673917138032,0.45369595,21110.0,21105.0,1.06624744]
[1673917138285,0.09614582,21109.0,21105.0,1.06624744]
[1673917138529,0.00042462,21108.0,21105.0,0.94655839]
[1673917139255,0.00042462,21108.0,21104.0,0.473825]